[Event "Early-Titled-Tuesday-Blitz-January-16-2024"]
[Site "Chess.com"]
[Date "2024.01.16"]
[Round "7"]
[White "Jospem"]
[Black "crescentmoon2411"]
[Result "1-0"]
[WhiteElo "3090"]
[BlackElo "2948"]
[TimeControl "180+1"]
[EndTime "9:23:11 PST"]
[Termination "Jospem won by checkmate"]

1. e4 {[%clk 0:03:00.9]} 1... c5 {[%clk 0:02:59.6]} 2. Nf3 {[%clk 0:03:00.9]}
2... Nc6 {[%clk 0:02:59.9]} 3. c3 {[%clk 0:03:01.2]} 3... d5 {[%clk 0:02:56.5]}
4. exd5 {[%clk 0:03:02.1]} 4... Qxd5 {[%clk 0:02:57]} 5. d4 {[%clk 0:03:02.9]}
5... Nf6 {[%clk 0:02:50.6]} 6. Be3 {[%clk 0:02:59.3]} 6... cxd4 {[%clk
0:02:43.5]} 7. cxd4 {[%clk 0:03:00.2]} 7... g6 {[%clk 0:02:40.1]} 8. Nc3 {[%clk
0:02:59.9]} 8... Qd8 {[%clk 0:02:31.1]} 9. d5 {[%clk 0:02:59.2]} 9... Nb8 {[%clk
0:02:29.4]} 10. h3 {[%clk 0:02:56]} 10... Bg7 {[%clk 0:02:29.2]} 11. Bc4 {[%clk
0:02:53.9]} 11... O-O {[%clk 0:02:28.7]} 12. O-O {[%clk 0:02:53.9]} 12... Ne8
{[%clk 0:02:10.6]} 13. Re1 {[%clk 0:02:50.6]} 13... Nd6 {[%clk 0:02:10.6]} 14.
Bb3 {[%clk 0:02:51.1]} 14... Nd7 {[%clk 0:02:10]} 15. Qe2 {[%clk 0:02:45.5]}
15... Re8 {[%clk 0:02:03.5]} 16. Bg5 {[%clk 0:02:43.5]} 16... Nf6 {[%clk
0:02:02]} 17. Ne5 {[%clk 0:02:38]} 17... Bd7 {[%clk 0:01:42.6]} 18. Rad1 {[%clk
0:02:25.5]} 18... a6 {[%clk 0:01:36.7]} 19. Qf3 {[%clk 0:02:21.8]} 19... Rc8
{[%clk 0:01:26.1]} 20. Bf4 {[%clk 0:01:47.1]} 20... Bb5 {[%clk 0:01:00.7]} 21.
g4 {[%clk 0:01:37]} 21... Bc4 {[%clk 0:00:48.1]} 22. Nxc4 {[%clk 0:01:30.7]}
22... Nxc4 {[%clk 0:00:49]} 23. Re2 {[%clk 0:01:30.2]} 23... Nd7 {[%clk
0:00:38.7]} 24. Rde1 {[%clk 0:01:29.5]} 24... b5 {[%clk 0:00:29.3]} 25. d6
{[%clk 0:01:24.6]} 25... e6 {[%clk 0:00:27.6]} 26. Bxc4 {[%clk 0:01:09.5]} 26...
Rxc4 {[%clk 0:00:28.5]} 27. Ne4 {[%clk 0:01:10.2]} 27... Qa8 {[%clk 0:00:21.7]}
28. b3 {[%clk 0:01:07.4]} 28... Rc6 {[%clk 0:00:15.7]} 29. Bg3 {[%clk
0:00:58.8]} 29... h6 {[%clk 0:00:13.3]} 30. h4 {[%clk 0:00:59]} 30... Rcc8
{[%clk 0:00:10.1]} 31. g5 {[%clk 0:00:56.8]} 31... h5 {[%clk 0:00:09]} 32. Kg2
{[%clk 0:00:56.8]} 32... Qd5 {[%clk 0:00:05.7]} 33. Rd2 {[%clk 0:00:49.1]} 33...
Qf5 {[%clk 0:00:05.7]} 34. Red1 {[%clk 0:00:49.6]} 34... Qxf3+ {[%clk
0:00:05.8]} 35. Kxf3 {[%clk 0:00:50.5]} 35... Rc6 {[%clk 0:00:05.8]} 36. Kg2
{[%clk 0:00:47.2]} 36... Rec8 {[%clk 0:00:06.1]} 37. b4 {[%clk 0:00:46.5]} 37...
Kf8 {[%clk 0:00:06.4]} 38. Nc5 {[%clk 0:00:44.6]} 38... Rxc5 {[%clk 0:00:03.8]}
39. bxc5 {[%clk 0:00:45.5]} 39... Rxc5 {[%clk 0:00:03.9]} 40. f3 {[%clk
0:00:40.7]} 40... Ke8 {[%clk 0:00:03.5]} 41. Rb1 {[%clk 0:00:39.3]} 41... Bc3
{[%clk 0:00:02.6]} 42. Rd3 {[%clk 0:00:38.9]} 42... b4 {[%clk 0:00:02.1]} 43.
Be1 {[%clk 0:00:27.9]} 43... Bxe1 {[%clk 0:00:01.6]} 44. Rxe1 {[%clk 0:00:28.8]}
44... Rc2+ {[%clk 0:00:02]} 45. Kg3 {[%clk 0:00:29.5]} 45... Nc5 {[%clk
0:00:02.1]} 46. Rd4 {[%clk 0:00:27.7]} 46... Kd7 {[%clk 0:00:02.3]} 47. Rxb4
{[%clk 0:00:25.1]} 47... Kxd6 {[%clk 0:00:02.5]} 48. Rd1+ {[%clk 0:00:22.8]}
48... Kc6 {[%clk 0:00:02.8]} 49. Rf4 {[%clk 0:00:22]} 49... Rxa2 {[%clk
0:00:01.8]} 50. Rxf7 {[%clk 0:00:22.4]} 50... a5 {[%clk 0:00:02.4]} 51. Rf6
{[%clk 0:00:21]} 51... a4 {[%clk 0:00:02.8]} 52. Rxg6 {[%clk 0:00:21.7]} 52...
a3 {[%clk 0:00:03.5]} 53. Rg8 {[%clk 0:00:22.2]} 53... Kb7 {[%clk 0:00:03.4]}
54. g6 {[%clk 0:00:22.1]} 54... Rb2 {[%clk 0:00:02.8]} 55. g7 {[%clk 0:00:22.6]}
55... a2 {[%clk 0:00:03.4]} 56. Rgd8 {[%clk 0:00:20.4]} 56... Rb1 {[%clk
0:00:02.9]} 57. g8=Q {[%clk 0:00:20.2]} 57... a1=Q {[%clk 0:00:02.6]} 58. Rb8+
{[%clk 0:00:19.2]} 58... Kc6 {[%clk 0:00:02.9]} 59. Qc8# {[%clk 0:00:18.7]} 1-0

[Event "Early-Titled-Tuesday-Blitz-January-16-2024"]
[Site "Chess.com"]
[Date "2024.01.16"]
[Round "7"]
[White "chucksterf10"]
[Black "ylr5000"]
[Result "0-1"]
[WhiteElo "2646"]
[BlackElo "2470"]
[TimeControl "180+1"]
[EndTime "9:23:11 PST"]
[Termination "ylr5000 won by resignation"]

1. e3 {[%clk 0:02:53.5]} 1... Nf6 {[%clk 0:02:58.6]} 2. Nf3 {[%clk 0:02:50.2]}
2... g6 {[%clk 0:02:58.7]} 3. b4 {[%clk 0:02:48.9]} 3... Bg7 {[%clk 0:02:59.6]}
4. Bb2 {[%clk 0:02:48.8]} 4... O-O {[%clk 0:03:00.1]} 5. c4 {[%clk 0:02:49.3]}
5... b6 {[%clk 0:02:59.1]} 6. d4 {[%clk 0:02:46.7]} 6... Bb7 {[%clk 0:02:59.7]}
7. Nbd2 {[%clk 0:02:47.3]} 7... a5 {[%clk 0:02:54.8]} 8. b5 {[%clk 0:02:46.9]}
8... d6 {[%clk 0:02:50.5]} 9. a4 {[%clk 0:02:46.7]} 9... Nbd7 {[%clk 0:02:51.4]}
10. Be2 {[%clk 0:02:46.4]} 10... e5 {[%clk 0:02:51.1]} 11. O-O {[%clk
0:02:43.3]} 11... Re8 {[%clk 0:02:49]} 12. Rc1 {[%clk 0:02:39]} 12... exd4
{[%clk 0:02:46.7]} 13. exd4 {[%clk 0:02:38.9]} 13... Bh6 {[%clk 0:02:43.5]} 14.
Rc2 {[%clk 0:02:31.6]} 14... Ne4 {[%clk 0:02:42.6]} 15. Nxe4 {[%clk 0:02:30.1]}
15... Bxe4 {[%clk 0:02:42.4]} 16. Bd3 {[%clk 0:02:30.6]} 16... Qf6 {[%clk
0:02:38.8]} 17. Bxe4 {[%clk 0:02:25.1]} 17... Rxe4 {[%clk 0:02:39.7]} 18. c5
{[%clk 0:02:25.7]} 18... d5 {[%clk 0:02:25.3]} 19. c6 {[%clk 0:02:23.1]} 19...
Nf8 {[%clk 0:02:23.7]} 20. Ne5 {[%clk 0:02:21.6]} 20... Ne6 {[%clk 0:02:14.1]}
21. Re2 {[%clk 0:02:10.2]} 21... Rxe2 {[%clk 0:02:04.9]} 22. Qxe2 {[%clk
0:02:11.1]} 22... Qf5 {[%clk 0:01:56.6]} 23. Re1 {[%clk 0:02:03.5]} 23... Re8
{[%clk 0:01:51.8]} 24. Qf3 {[%clk 0:02:02.3]} 24... Qxf3 {[%clk 0:01:36.2]} 25.
Nxf3 {[%clk 0:02:03.2]} 25... Bf8 {[%clk 0:01:34.7]} 26. Ne5 {[%clk 0:01:56.7]}
26... Bd6 {[%clk 0:01:34.8]} 27. Nd7 {[%clk 0:01:57]} 27... Kg7 {[%clk
0:01:34.6]} 28. g3 {[%clk 0:01:49]} 28... h5 {[%clk 0:01:33.3]} 29. h4 {[%clk
0:01:48.8]} 29... Rd8 {[%clk 0:01:18.2]} 30. Kg2 {[%clk 0:01:46.9]} 30... Nf8
{[%clk 0:01:08.5]} 31. Ne5 {[%clk 0:01:16.1]} 31... Bxe5 {[%clk 0:01:06.1]} 32.
Rxe5 {[%clk 0:01:17]} 32... Ne6 {[%clk 0:01:02.2]} 33. f4 {[%clk 0:01:17.3]}
33... Kf6 {[%clk 0:01:02.1]} 34. Kf3 {[%clk 0:01:12.8]} 34... Ng7 {[%clk
0:00:58.3]} 35. Bc3 {[%clk 0:00:30.8]} 35... Nf5 {[%clk 0:00:57.9]} 36. Kf2
{[%clk 0:00:30]} 36... Kg7 {[%clk 0:00:55.4]} 37. Re1 {[%clk 0:00:28.4]} 37...
Nd6 {[%clk 0:00:49.7]} 38. Bb2 {[%clk 0:00:23.7]} 38... Ne4+ {[%clk 0:00:42.2]}
39. Kg2 {[%clk 0:00:24]} 39... Kf6 {[%clk 0:00:41.7]} 40. Ba3 {[%clk 0:00:23.2]}
40... Kf5 {[%clk 0:00:40.8]} 41. Kf3 {[%clk 0:00:22.7]} 41... Re8 {[%clk
0:00:40.1]} 42. Re2 {[%clk 0:00:21.1]} 42... Re6 {[%clk 0:00:39.8]} 43. Rc2
{[%clk 0:00:16.1]} 43... Nf6 {[%clk 0:00:36.8]} 44. Bc1 {[%clk 0:00:13.9]} 44...
Re1 {[%clk 0:00:36.1]} 45. Bd2 {[%clk 0:00:14.3]} 45... Ra1 {[%clk 0:00:35.2]}
46. Bxa5 {[%clk 0:00:13]} 46... bxa5 {[%clk 0:00:34.1]} 47. b6 {[%clk
0:00:13.4]} 47... Ne8 {[%clk 0:00:32.5]} 48. b7 {[%clk 0:00:13.7]} 48... Rb1
{[%clk 0:00:32.3]} 49. Rc5 {[%clk 0:00:14.3]} 49... Rb3+ {[%clk 0:00:28]} 50.
Ke2 {[%clk 0:00:14.9]} 50... Ke4 {[%clk 0:00:26.3]} 51. Rxa5 {[%clk 0:00:15.5]}
51... Nd6 {[%clk 0:00:26.8]} 52. Ra8 {[%clk 0:00:14.7]} 52... Nxb7 {[%clk
0:00:27.2]} 53. cxb7 {[%clk 0:00:13.4]} 53... Rxb7 {[%clk 0:00:28.1]} 54. a5
{[%clk 0:00:10.5]} 54... Rb2+ {[%clk 0:00:27.4]} 55. Kd1 {[%clk 0:00:10.6]}
55... Kxd4 {[%clk 0:00:28.1]} 56. a6 {[%clk 0:00:10.6]} 56... Ra2 {[%clk
0:00:28.7]} 57. Rc8 {[%clk 0:00:10]} 57... c5 {[%clk 0:00:28.6]} 58. Ra8 {[%clk
0:00:08.8]} 58... Kd3 {[%clk 0:00:28.1]} 59. Kc1 {[%clk 0:00:08.8]} 59... c4
{[%clk 0:00:27.1]} 60. Kb1 {[%clk 0:00:08.9]} 60... Ra5 {[%clk 0:00:26.1]} 61.
a7 {[%clk 0:00:07.8]} 61... d4 {[%clk 0:00:26.6]} 62. f5 {[%clk 0:00:08.1]}
62... gxf5 {[%clk 0:00:26.5]} 63. Kb2 {[%clk 0:00:08.4]} 63... c3+ {[%clk
0:00:26.6]} 64. Kb3 {[%clk 0:00:09.3]} 64... Ra1 {[%clk 0:00:23.6]} 65. Kb4
{[%clk 0:00:04.9]} 65... c2 {[%clk 0:00:23.8]} 66. Rc8 {[%clk 0:00:04.2]} 66...
Rxa7 {[%clk 0:00:23.4]} 0-1

[Event "Early-Titled-Tuesday-Blitz-January-16-2024"]
[Site "Chess.com"]
[Date "2024.01.16"]
[Round "7"]
[White "Predator0608"]
[Black "NelsonLinda"]
[Result "1-0"]
[WhiteElo "2489"]
[BlackElo "2604"]
[TimeControl "180+1"]
[EndTime "9:23:12 PST"]
[Termination "Predator0608 won by resignation"]

1. f4 {[%clk 0:03:00.9]} 1... Nf6 {[%clk 0:02:56.6]} 2. Nf3 {[%clk 0:02:59.4]}
2... b6 {[%clk 0:02:54.7]} 3. g3 {[%clk 0:02:59.9]} 3... Bb7 {[%clk 0:02:54.6]}
4. Bg2 {[%clk 0:03:00.8]} 4... g6 {[%clk 0:02:52.5]} 5. O-O {[%clk 0:03:01.7]}
5... Bg7 {[%clk 0:02:51.4]} 6. d3 {[%clk 0:03:01]} 6... d5 {[%clk 0:02:47.2]} 7.
Qe1 {[%clk 0:02:59.5]} 7... O-O {[%clk 0:02:46.5]} 8. Nbd2 {[%clk 0:03:00]} 8...
d4 {[%clk 0:02:43.2]} 9. e4 {[%clk 0:02:57.4]} 9... dxe3 {[%clk 0:02:43.1]} 10.
Qxe3 {[%clk 0:02:57.9]} 10... Nbd7 {[%clk 0:02:36.6]} 11. Re1 {[%clk 0:02:56.9]}
11... e6 {[%clk 0:02:31]} 12. Nb3 {[%clk 0:02:53.3]} 12... c5 {[%clk 0:02:29.7]}
13. a4 {[%clk 0:02:46]} 13... Qc7 {[%clk 0:02:21.2]} 14. Qe2 {[%clk 0:02:43]}
14... Rad8 {[%clk 0:02:12.5]} 15. Bd2 {[%clk 0:02:42]} 15... Nd5 {[%clk
0:02:10]} 16. Rab1 {[%clk 0:02:32.2]} 16... Bc6 {[%clk 0:02:08.3]} 17. a5 {[%clk
0:02:30.5]} 17... Ba4 {[%clk 0:01:53.3]} 18. axb6 {[%clk 0:02:28.8]} 18... axb6
{[%clk 0:01:54.2]} 19. h4 {[%clk 0:02:26]} 19... Bxb3 {[%clk 0:01:50.2]} 20.
cxb3 {[%clk 0:02:26.9]} 20... h5 {[%clk 0:01:50.9]} 21. g4 {[%clk 0:02:18.4]}
21... hxg4 {[%clk 0:01:50.3]} 22. Ng5 {[%clk 0:02:17.2]} 22... N7f6 {[%clk
0:01:47]} 23. Rf1 {[%clk 0:02:11.3]} 23... Rd7 {[%clk 0:01:19.9]} 24. Rbe1
{[%clk 0:02:03.9]} 24... Rfd8 {[%clk 0:01:17.4]} 25. Be4 {[%clk 0:01:49.7]}
25... Ne7 {[%clk 0:01:05.4]} 26. Bc3 {[%clk 0:01:36.9]} 26... Nf5 {[%clk
0:01:05.5]} 27. Be5 {[%clk 0:00:54.5]} 27... Qc8 {[%clk 0:00:50.3]} 28. Bxf6
{[%clk 0:00:25.8]} 28... Bxf6 {[%clk 0:00:50.4]} 29. Qxg4 {[%clk 0:00:25.7]}
29... Rxd3 {[%clk 0:00:39.9]} 30. Bxd3 {[%clk 0:00:22.1]} 30... Rxd3 {[%clk
0:00:40.8]} 31. Rf3 {[%clk 0:00:22.4]} 31... Qd7 {[%clk 0:00:22.1]} 32. h5
{[%clk 0:00:18.6]} 32... Rxf3 {[%clk 0:00:21.7]} 33. Nxf3 {[%clk 0:00:18.1]}
33... Kg7 {[%clk 0:00:15.1]} 34. hxg6 {[%clk 0:00:17.8]} 34... fxg6 {[%clk
0:00:16]} 35. Kh1 {[%clk 0:00:18.2]} 35... Qd5 {[%clk 0:00:06.8]} 36. Kh2 {[%clk
0:00:17.8]} 36... Qxb3 {[%clk 0:00:05.6]} 37. Rg1 {[%clk 0:00:15.9]} 37... Ne7
{[%clk 0:00:03.1]} 38. Rg2 {[%clk 0:00:15.1]} 38... Qe3 {[%clk 0:00:02.2]} 39.
Ng5 {[%clk 0:00:14.3]} 39... Bxg5 {[%clk 0:00:01.9]} 40. Qxg5 {[%clk 0:00:15.2]}
40... Kf7 {[%clk 0:00:01.9]} 41. Qh4 {[%clk 0:00:15.8]} 41... Qe4 {[%clk
0:00:01.2]} 42. Qh7+ {[%clk 0:00:16.3]} 42... Ke8 {[%clk 0:00:01.9]} 43. Qh8+
{[%clk 0:00:17.2]} 43... Kd7 {[%clk 0:00:02.3]} 44. Rd2+ {[%clk 0:00:17.3]}
44... Kc7 {[%clk 0:00:01.9]} 45. Qd8+ {[%clk 0:00:17.4]} 45... Kb7 {[%clk
0:00:02.5]} 46. Qxe7+ {[%clk 0:00:17.5]} 46... Ka6 {[%clk 0:00:03.1]} 47. Qf8
{[%clk 0:00:13]} 47... Qf3 {[%clk 0:00:02.7]} 48. Qh6 {[%clk 0:00:10.9]} 48...
Qe3 {[%clk 0:00:02.3]} 49. Rg2 {[%clk 0:00:11]} 49... Qc3 {[%clk 0:00:01.5]} 50.
bxc3 {[%clk 0:00:10.7]} 1-0

[Event "Early-Titled-Tuesday-Blitz-January-16-2024"]
[Site "Chess.com"]
[Date "2024.01.16"]
[Round "7"]
[White "hmatyi07"]
[Black "MusicCityMaster"]
[Result "1-0"]
[WhiteElo "2224"]
[BlackElo "2407"]
[TimeControl "180+1"]
[EndTime "9:23:12 PST"]
[Termination "hmatyi07 won by checkmate"]

1. e4 {[%clk 0:03:00.9]} 1... e6 {[%clk 0:02:59.7]} 2. d4 {[%clk 0:03:00.1]}
2... d5 {[%clk 0:03:00.3]} 3. Nc3 {[%clk 0:03:00.7]} 3... Bb4 {[%clk 0:02:59.8]}
4. exd5 {[%clk 0:03:01]} 4... exd5 {[%clk 0:02:59.4]} 5. Bd3 {[%clk 0:03:01.7]}
5... Nc6 {[%clk 0:02:59.6]} 6. a3 {[%clk 0:03:00.3]} 6... Bd6 {[%clk 0:02:53.3]}
7. Nge2 {[%clk 0:02:57.9]} 7... Nge7 {[%clk 0:02:53]} 8. Be3 {[%clk 0:02:55.3]}
8... Bg4 {[%clk 0:02:49.4]} 9. f3 {[%clk 0:02:53.5]} 9... Bf5 {[%clk 0:02:45.7]}
10. Qd2 {[%clk 0:02:49.9]} 10... Qd7 {[%clk 0:02:45.4]} 11. O-O-O {[%clk
0:02:48.9]} 11... O-O-O {[%clk 0:02:45.2]} 12. Nb5 {[%clk 0:02:34.2]} 12... Kb8
{[%clk 0:02:42.5]} 13. Nxd6 {[%clk 0:02:34.3]} 13... Qxd6 {[%clk 0:02:42.8]} 14.
Bf4 {[%clk 0:02:29.7]} 14... Qg6 {[%clk 0:02:40.4]} 15. Ng3 {[%clk 0:02:18.8]}
15... Bxd3 {[%clk 0:02:37.7]} 16. Qxd3 {[%clk 0:02:19.1]} 16... Qf6 {[%clk
0:02:30]} 17. Qd2 {[%clk 0:01:42.8]} 17... h6 {[%clk 0:02:26.5]} 18. Rhe1 {[%clk
0:01:41.1]} 18... Ng6 {[%clk 0:02:21.4]} 19. Be3 {[%clk 0:01:27.9]} 19... Qd6
{[%clk 0:02:13.6]} 20. Nf5 {[%clk 0:01:26]} 20... Qf6 {[%clk 0:02:00.1]} 21. Qd3
{[%clk 0:01:25.5]} 21... Na5 {[%clk 0:01:54.1]} 22. b3 {[%clk 0:01:00]} 22...
Rhe8 {[%clk 0:01:47.7]} 23. Bd2 {[%clk 0:00:55.5]} 23... Nc4 {[%clk 0:01:25.7]}
24. bxc4 {[%clk 0:00:43.8]} 24... dxc4 {[%clk 0:01:25.5]} 25. Qxc4 {[%clk
0:00:44.1]} 25... Qxf5 {[%clk 0:01:25.5]} 26. Bb4 {[%clk 0:00:32.4]} 26... Qf4+
{[%clk 0:01:21.8]} 27. Kb1 {[%clk 0:00:31.6]} 27... Qxh2 {[%clk 0:01:19.3]} 28.
Rxe8 {[%clk 0:00:24.2]} 28... Rxe8 {[%clk 0:01:15.3]} 29. Qxf7 {[%clk
0:00:24.8]} 29... Rc8 {[%clk 0:01:05.6]} 30. Qxg6 {[%clk 0:00:24.6]} 30... b6
{[%clk 0:00:56.4]} 31. Qxg7 {[%clk 0:00:24.1]} 31... a5 {[%clk 0:00:56.6]} 32.
Bd2 {[%clk 0:00:20.5]} 32... Qd6 {[%clk 0:00:56.5]} 33. Qxh6 {[%clk 0:00:16.4]}
33... Qxa3 {[%clk 0:00:55.6]} 34. Bf4 {[%clk 0:00:14.5]} 34... Qb4+ {[%clk
0:00:54.7]} 35. Kc1 {[%clk 0:00:13.2]} 35... Re8 {[%clk 0:00:48.1]} 36. Qh7
{[%clk 0:00:05.8]} 36... Qa3+ {[%clk 0:00:43.7]} 37. Kb1 {[%clk 0:00:06.4]}
37... Qb4+ {[%clk 0:00:43.8]} 38. Kc1 {[%clk 0:00:07]} 38... Qc3 {[%clk
0:00:35.6]} 39. Bxc7+ {[%clk 0:00:03.6]} 39... Qxc7 {[%clk 0:00:35.5]} 40. Qxc7+
{[%clk 0:00:04.5]} 40... Kxc7 {[%clk 0:00:35.3]} 41. Kd2 {[%clk 0:00:05.1]}
41... Kc6 {[%clk 0:00:33]} 42. c3 {[%clk 0:00:05.6]} 42... Kd5 {[%clk
0:00:30.5]} 43. Kd3 {[%clk 0:00:06.1]} 43... b5 {[%clk 0:00:29.6]} 44. Rb1
{[%clk 0:00:05.9]} 44... Rb8 {[%clk 0:00:29.2]} 45. Rxb5+ {[%clk 0:00:05.3]}
45... Rxb5 {[%clk 0:00:27.8]} 46. c4+ {[%clk 0:00:06]} 46... Kc6 {[%clk
0:00:28.5]} 47. cxb5+ {[%clk 0:00:06.9]} 47... Kxb5 {[%clk 0:00:29.4]} 48. Kc3
{[%clk 0:00:07.4]} 48... a4 {[%clk 0:00:25.9]} 49. Kb2 {[%clk 0:00:07.6]} 49...
Kb4 {[%clk 0:00:23.8]} 50. d5 {[%clk 0:00:07.8]} 50... Kc5 {[%clk 0:00:23.7]}
51. Ka3 {[%clk 0:00:08.1]} 51... Kxd5 {[%clk 0:00:24.3]} 52. Kxa4 {[%clk
0:00:09]} 52... Ke5 {[%clk 0:00:25.2]} 53. Kb3 {[%clk 0:00:09.6]} 53... Kf4
{[%clk 0:00:26.1]} 54. Kc3 {[%clk 0:00:10.3]} 54... Kg3 {[%clk 0:00:27]} 55. Kd3
{[%clk 0:00:10.7]} 55... Kxg2 {[%clk 0:00:27.9]} 56. Ke4 {[%clk 0:00:11.2]}
56... Kg3 {[%clk 0:00:27.9]} 57. f4 {[%clk 0:00:12.1]} 57... Kg4 {[%clk
0:00:28.6]} 58. Ke5 {[%clk 0:00:12.8]} 58... Kh5 {[%clk 0:00:28.6]} 59. f5
{[%clk 0:00:13.2]} 59... Kh6 {[%clk 0:00:29.1]} 60. Ke6 {[%clk 0:00:13.9]} 60...
Kg7 {[%clk 0:00:29.1]} 61. Ke7 {[%clk 0:00:13.2]} 61... Kg8 {[%clk 0:00:29.3]}
62. f6 {[%clk 0:00:14]} 62... Kh7 {[%clk 0:00:28.5]} 63. f7 {[%clk 0:00:14.9]}
63... Kg6 {[%clk 0:00:28.3]} 64. f8=Q {[%clk 0:00:14.8]} 64... Kh7 {[%clk
0:00:28.9]} 65. Qf2 {[%clk 0:00:14.4]} 65... Kg6 {[%clk 0:00:28.1]} 66. Qf6+
{[%clk 0:00:12.7]} 66... Kh7 {[%clk 0:00:26.6]} 67. Qg5 {[%clk 0:00:12.6]} 67...
Kh8 {[%clk 0:00:26.6]} 68. Kf7 {[%clk 0:00:13.5]} 68... Kh7 {[%clk 0:00:26.6]}
69. Qh5# {[%clk 0:00:14.2]} 1-0

[Event "Early-Titled-Tuesday-Blitz-January-16-2024"]
[Site "Chess.com"]
[Date "2024.01.16"]
[Round "7"]
[White "agvega14"]
[Black "imdarealist"]
[Result "1-0"]
[WhiteElo "2136"]
[BlackElo "2263"]
[TimeControl "180+1"]
[EndTime "9:23:13 PST"]
[Termination "agvega14 won by checkmate"]

1. d4 {[%clk 0:02:45.2]} 1... d5 {[%clk 0:02:54.7]} 2. c4 {[%clk 0:02:44.8]}
2... e6 {[%clk 0:02:54.6]} 3. Nc3 {[%clk 0:02:45.4]} 3... Nf6 {[%clk 0:02:54.2]}
4. cxd5 {[%clk 0:02:46]} 4... exd5 {[%clk 0:02:53.7]} 5. Bg5 {[%clk 0:02:46.6]}
5... c6 {[%clk 0:02:49.9]} 6. e3 {[%clk 0:02:45.5]} 6... Qb6 {[%clk 0:02:49.7]}
7. Qc2 {[%clk 0:02:43.5]} 7... Ne4 {[%clk 0:02:48.7]} 8. Bf4 {[%clk 0:02:17.8]}
8... Bb4 {[%clk 0:02:34.1]} 9. Bd3 {[%clk 0:02:14.7]} 9... Nf6 {[%clk
0:02:27.6]} 10. Ne2 {[%clk 0:02:12.9]} 10... Be6 {[%clk 0:02:27.4]} 11. a3
{[%clk 0:02:11.4]} 11... Be7 {[%clk 0:02:26.9]} 12. b4 {[%clk 0:02:09.2]} 12...
Nbd7 {[%clk 0:02:25.8]} 13. O-O {[%clk 0:02:06.7]} 13... O-O {[%clk 0:02:25.8]}
14. h3 {[%clk 0:02:00.5]} 14... h6 {[%clk 0:02:23.8]} 15. Na4 {[%clk 0:01:56.1]}
15... Qd8 {[%clk 0:02:18.9]} 16. Nc5 {[%clk 0:01:54.4]} 16... Nxc5 {[%clk
0:01:58]} 17. dxc5 {[%clk 0:01:52.3]} 17... Nd7 {[%clk 0:01:51.1]} 18. Nd4
{[%clk 0:01:51.5]} 18... Bf6 {[%clk 0:01:49.4]} 19. Bh7+ {[%clk 0:01:41.3]}
19... Kh8 {[%clk 0:01:49.3]} 20. Bf5 {[%clk 0:01:41.2]} 20... Re8 {[%clk
0:01:46.7]} 21. Rad1 {[%clk 0:01:07.8]} 21... Qe7 {[%clk 0:01:46.8]} 22. Bd6
{[%clk 0:01:04.6]} 22... Qd8 {[%clk 0:01:46.4]} 23. Nxe6 {[%clk 0:01:01.8]}
23... fxe6 {[%clk 0:01:38.1]} 24. Bg6 {[%clk 0:01:01.9]} 24... e5 {[%clk
0:01:38.7]} 25. Bxe8 {[%clk 0:01:01.2]} 25... Qxe8 {[%clk 0:01:39.6]} 26. Qf5
{[%clk 0:00:54.9]} 26... Qf7 {[%clk 0:01:37.5]} 27. Qg4 {[%clk 0:00:47.4]} 27...
a5 {[%clk 0:01:28.9]} 28. Rb1 {[%clk 0:00:42.6]} 28... a4 {[%clk 0:01:23]} 29.
b5 {[%clk 0:00:39.2]} 29... Nf8 {[%clk 0:01:18.7]} 30. bxc6 {[%clk 0:00:36.5]}
30... bxc6 {[%clk 0:01:19.6]} 31. Rb6 {[%clk 0:00:35.8]} 31... d4 {[%clk
0:01:16.7]} 32. exd4 {[%clk 0:00:34.2]} 32... exd4 {[%clk 0:01:17.6]} 33. Rxc6
{[%clk 0:00:33]} 33... Kh7 {[%clk 0:00:55.3]} 34. Rc7 {[%clk 0:00:32.9]} 34...
Qd5 {[%clk 0:00:46.6]} 35. Rd1 {[%clk 0:00:28]} 35... d3 {[%clk 0:00:46.1]} 36.
Qf3 {[%clk 0:00:22.3]} 36... Qxf3 {[%clk 0:00:37.6]} 37. gxf3 {[%clk 0:00:23.2]}
37... Ne6 {[%clk 0:00:38.3]} 38. Rxd3 {[%clk 0:00:22.8]} 38... Nxc7 {[%clk
0:00:38.6]} 39. Bxc7 {[%clk 0:00:22.7]} 39... Bb2 {[%clk 0:00:30.7]} 40. Bd6
{[%clk 0:00:22]} 40... Rc8 {[%clk 0:00:29.8]} 41. Re3 {[%clk 0:00:20.1]} 41...
Bd4 {[%clk 0:00:27.9]} 42. Re4 {[%clk 0:00:19.7]} 42... Bb2 {[%clk 0:00:17.5]}
43. Rxa4 {[%clk 0:00:17.7]} 43... Rd8 {[%clk 0:00:17.2]} 44. Ra7 {[%clk
0:00:17.6]} 44... Re8 {[%clk 0:00:13.7]} 45. Kg2 {[%clk 0:00:17.8]} 45... Re2
{[%clk 0:00:13.2]} 46. c6 {[%clk 0:00:18]} 46... Rc2 {[%clk 0:00:13]} 47. c7
{[%clk 0:00:17.8]} 47... Bd4 {[%clk 0:00:12.8]} 48. Ra8 {[%clk 0:00:17.4]} 48...
Bxf2 {[%clk 0:00:04.8]} 49. c8=Q {[%clk 0:00:15.2]} 49... Bc5+ {[%clk
0:00:04.7]} 50. Kf1 {[%clk 0:00:12.7]} 50... Rc1+ {[%clk 0:00:04.3]} 51. Ke2
{[%clk 0:00:12.8]} 51... Bxa3 {[%clk 0:00:01.6]} 52. Qf5+ {[%clk 0:00:10.7]}
52... g6 {[%clk 0:00:01.5]} 53. Qf7# {[%clk 0:00:10.8]} 1-0